[Event "Late-Titled-Tuesday-Blitz-July-09-2024"]
[Site "Chess.com"]
[Date "2024.07.09"]
[Round "1"]
[White "cthulhuuu"]
[Black "MarcoRiehle"]
[Result "0-1"]
[WhiteElo "2456"]
[BlackElo "2852"]
[TimeControl "180+1"]
[EndTime "14:04:40 PDT"]
[Termination "MarcoRiehle won by checkmate"]

1. e4 {[%clk 0:03:00.1]} 1... e5 {[%clk 0:02:59.8]} 2. Nf3 {[%clk 0:03:00.4]}
2... Nf6 {[%clk 0:02:59.8]} 3. d3 {[%clk 0:03:00.8]} 3... Nc6 {[%clk 0:02:59.1]}
4. g3 {[%clk 0:03:01.6]} 4... Bc5 {[%clk 0:02:58.8]} 5. Bg2 {[%clk 0:03:00.3]}
5... d6 {[%clk 0:02:57.8]} 6. O-O {[%clk 0:03:00.7]} 6... h5 {[%clk 0:02:57.9]}
7. c3 {[%clk 0:02:56.7]} 7... Bg4 {[%clk 0:02:55.8]} 8. h3 {[%clk 0:02:55.6]}
8... h4 {[%clk 0:02:54.5]} 9. hxg4 {[%clk 0:02:39.2]} 9... hxg3 {[%clk
0:02:54.2]} 10. d4 {[%clk 0:02:38]} 10... gxf2+ {[%clk 0:02:54]} 11. Rxf2 {[%clk
0:02:37.9]} 11... Bb6 {[%clk 0:02:54.7]} 12. Bg5 {[%clk 0:02:27.7]} 12... Qd7
{[%clk 0:02:48.3]} 13. Bxf6 {[%clk 0:02:09.6]} 13... gxf6 {[%clk 0:02:49.2]} 14.
Na3 {[%clk 0:02:02.6]} 14... a6 {[%clk 0:02:38.9]} 15. Nc4 {[%clk 0:02:02.6]}
15... Ba7 {[%clk 0:02:39.3]} 16. Ne3 {[%clk 0:02:03]} 16... O-O-O {[%clk
0:02:38.4]} 17. b4 {[%clk 0:01:35.5]} 17... Rdg8 {[%clk 0:02:36.2]} 18. a4
{[%clk 0:01:33.2]} 18... Ne7 {[%clk 0:02:28.4]} 19. b5 {[%clk 0:01:18.2]} 19...
a5 {[%clk 0:02:27.7]} 20. Rb1 {[%clk 0:01:18.4]} 20... Bb6 {[%clk 0:02:24.6]}
21. Nc4 {[%clk 0:01:15.3]} 21... Qxg4 {[%clk 0:02:19.6]} 22. Nxb6+ {[%clk
0:01:15]} 22... cxb6 {[%clk 0:02:19.9]} 23. Nd2 {[%clk 0:00:18.6]} 23... Qh4
{[%clk 0:02:15.2]} 24. Nc4 {[%clk 0:00:17.6]} 24... Qh1# {[%clk 0:02:13.6]} 0-1

[Event "Late-Titled-Tuesday-Blitz-July-09-2024"]
[Site "Chess.com"]
[Date "2024.07.09"]
[Round "1"]
[White "GMAneta"]
[Black "kkpanu9"]
[Result "0-1"]
[WhiteElo "2532"]
[BlackElo "2065"]
[TimeControl "180+1"]
[EndTime "14:04:40 PDT"]
[Termination "kkpanu9 won by checkmate"]

1. d4 {[%clk 0:02:59.1]} 1... Nf6 {[%clk 0:02:59.8]} 2. c4 {[%clk 0:02:58.7]}
2... e6 {[%clk 0:03:00.1]} 3. Nc3 {[%clk 0:02:58.5]} 3... Bb4 {[%clk 0:02:58.5]}
4. e3 {[%clk 0:02:58.5]} 4... d6 {[%clk 0:02:53.5]} 5. Ne2 {[%clk 0:02:53.4]}
5... O-O {[%clk 0:02:37.2]} 6. a3 {[%clk 0:02:52.8]} 6... Bxc3+ {[%clk
0:02:37.4]} 7. Nxc3 {[%clk 0:02:53.6]} 7... e5 {[%clk 0:02:37.2]} 8. d5 {[%clk
0:02:52.8]} 8... e4 {[%clk 0:02:25]} 9. Be2 {[%clk 0:02:51.1]} 9... a5 {[%clk
0:02:22.1]} 10. O-O {[%clk 0:02:48.7]} 10... Nbd7 {[%clk 0:02:21.8]} 11. Rb1
{[%clk 0:02:47.6]} 11... b6 {[%clk 0:02:04]} 12. b4 {[%clk 0:02:47]} 12... axb4
{[%clk 0:02:03.7]} 13. axb4 {[%clk 0:02:47.9]} 13... Qe7 {[%clk 0:02:00]} 14.
Bb2 {[%clk 0:02:47.2]} 14... Bb7 {[%clk 0:01:48.4]} 15. Nb5 {[%clk 0:02:46.4]}
15... Ne5 {[%clk 0:01:39.7]} 16. Nd4 {[%clk 0:02:39.4]} 16... g6 {[%clk
0:01:33.7]} 17. Qc2 {[%clk 0:02:34.7]} 17... Ra2 {[%clk 0:01:26.3]} 18. Ra1
{[%clk 0:02:31.7]} 18... Rfa8 {[%clk 0:01:26.4]} 19. Qb3 {[%clk 0:02:27.2]}
19... Rxa1 {[%clk 0:01:24.7]} 20. Bxa1 {[%clk 0:02:28.1]} 20... Nfd7 {[%clk
0:01:20.6]} 21. Qc3 {[%clk 0:02:27.3]} 21... Ra2 {[%clk 0:01:11.5]} 22. Nc6
{[%clk 0:02:25.5]} 22... Bxc6 {[%clk 0:01:07.9]} 23. dxc6 {[%clk 0:02:24.9]}
23... Rxe2 {[%clk 0:01:08]} 24. cxd7 {[%clk 0:02:23.5]} 24... Qxd7 {[%clk
0:01:08.1]} 25. f4 {[%clk 0:02:22.5]} 25... exf3 {[%clk 0:01:07.7]} 26. gxf3
{[%clk 0:02:22.3]} 26... f6 {[%clk 0:01:05.5]} 27. Rf2 {[%clk 0:02:16.6]} 27...
Rxf2 {[%clk 0:00:47.9]} 28. Kxf2 {[%clk 0:02:15.2]} 28... Qh3 {[%clk 0:00:48.6]}
29. f4 {[%clk 0:02:14.3]} 29... Qxh2+ {[%clk 0:00:44.1]} 30. Ke1 {[%clk
0:02:10.2]} 30... Ng4 {[%clk 0:00:38.3]} 31. Qd4 {[%clk 0:02:07.6]} 31... Qf2+
{[%clk 0:00:37.3]} 32. Kd1 {[%clk 0:02:07]} 32... Nxe3+ {[%clk 0:00:37.7]} 33.
Kc1 {[%clk 0:02:06.6]} 33... Qc2# {[%clk 0:00:36.8]} 0-1

[Event "Late-Titled-Tuesday-Blitz-July-09-2024"]
[Site "Chess.com"]
[Date "2024.07.09"]
[Round "1"]
[White "amanmuhammethommadov"]
[Black "GAO"]
[Result "0-1"]
[WhiteElo "2793"]
[BlackElo "2452"]
[TimeControl "180+1"]
[EndTime "14:04:52 PDT"]
[Termination "GAO won by resignation"]

1. e4 {[%clk 0:03:00]} 1... c5 {[%clk 0:02:59.1]} 2. Nf3 {[%clk 0:03:00.4]} 2...
d6 {[%clk 0:02:59.5]} 3. d4 {[%clk 0:03:00.7]} 3... cxd4 {[%clk 0:03:00.3]} 4.
Nxd4 {[%clk 0:03:01.6]} 4... Nf6 {[%clk 0:03:00.3]} 5. Nc3 {[%clk 0:03:02.3]}
5... a6 {[%clk 0:03:00.8]} 6. Bg5 {[%clk 0:03:02.6]} 6... e6 {[%clk 0:02:59.6]}
7. f4 {[%clk 0:03:03]} 7... h6 {[%clk 0:02:59.4]} 8. Bh4 {[%clk 0:03:03.3]} 8...
Qb6 {[%clk 0:02:59.9]} 9. a3 {[%clk 0:03:03.6]} 9... Be7 {[%clk 0:02:59.1]} 10.
Bf2 {[%clk 0:03:03.9]} 10... Qc7 {[%clk 0:02:58.5]} 11. Qf3 {[%clk 0:03:04.3]}
11... b5 {[%clk 0:02:57.9]} 12. O-O-O {[%clk 0:03:04.6]} 12... Bb7 {[%clk
0:02:57]} 13. g4 {[%clk 0:03:04.9]} 13... Nbd7 {[%clk 0:02:46.2]} 14. h4 {[%clk
0:03:04.4]} 14... d5 {[%clk 0:02:46.1]} 15. e5 {[%clk 0:03:04.5]} 15... Ne4
{[%clk 0:02:46.4]} 16. Nxe4 {[%clk 0:02:59.2]} 16... dxe4 {[%clk 0:02:46.3]} 17.
Qe3 {[%clk 0:02:48.5]} 17... Nb6 {[%clk 0:02:43.3]} 18. Rh3 {[%clk 0:02:46.7]}
18... Rc8 {[%clk 0:02:38.6]} 19. Rd2 {[%clk 0:02:20.1]} 19... Nc4 {[%clk
0:02:30.9]} 20. Bxc4 {[%clk 0:02:19.9]} 20... Qxc4 {[%clk 0:02:31.8]} 21. Kb1
{[%clk 0:02:17.8]} 21... Qf1+ {[%clk 0:02:28.2]} 22. Qe1 {[%clk 0:02:17.8]}
22... Qxh3 {[%clk 0:02:27.1]} 23. f5 {[%clk 0:02:18.3]} 23... Qxg4 {[%clk
0:02:15.4]} 24. f6 {[%clk 0:02:11]} 24... gxf6 {[%clk 0:02:12.2]} 25. exf6
{[%clk 0:02:11.9]} 25... Bxf6 {[%clk 0:02:12.8]} 26. Nb3 {[%clk 0:02:12.3]}
26... Bd5 {[%clk 0:02:02.9]} 27. Nc5 {[%clk 0:02:12.3]} 27... e3 {[%clk
0:01:43.4]} 28. Qxe3 {[%clk 0:01:59.6]} 28... Qc4 {[%clk 0:01:31.9]} 29. c3
{[%clk 0:01:41.9]} 29... Qxc5 {[%clk 0:01:16.8]} 30. Qxc5 {[%clk 0:01:41.5]}
30... Rxc5 {[%clk 0:01:16.4]} 31. Bxc5 {[%clk 0:01:42.4]} 31... Rg8 {[%clk
0:01:12.9]} 32. Be3 {[%clk 0:01:39.8]} 32... h5 {[%clk 0:01:07.2]} 33. Kc2
{[%clk 0:01:39.6]} 33... Rg2 {[%clk 0:01:04.9]} 34. Rxg2 {[%clk 0:01:36.5]}
34... Bxg2 {[%clk 0:01:05.8]} 35. Bg5 {[%clk 0:01:37.4]} 0-1

[Event "Late-Titled-Tuesday-Blitz-July-09-2024"]
[Site "Chess.com"]
[Date "2024.07.09"]
[Round "1"]
[White "Barboval"]
[Black "axlbvRR"]
[Result "1-0"]
[WhiteElo "2534"]
[BlackElo "1936"]
[TimeControl "180+1"]
[EndTime "14:04:52 PDT"]
[Termination "Barboval won by resignation"]

1. d4 {[%clk 0:02:59.7]} 1... Nf6 {[%clk 0:02:57]} 2. Bg5 {[%clk 0:02:59.2]}
2... e6 {[%clk 0:02:55.8]} 3. e4 {[%clk 0:02:58.9]} 3... Be7 {[%clk 0:02:55.8]}
4. e5 {[%clk 0:02:58.5]} 4... Ng8 {[%clk 0:02:54.8]} 5. Bxe7 {[%clk 0:02:59.4]}
5... Nxe7 {[%clk 0:02:54.2]} 6. f4 {[%clk 0:02:59]} 6... d6 {[%clk 0:02:51.7]}
7. Bd3 {[%clk 0:02:59.2]} 7... c5 {[%clk 0:02:50.6]} 8. dxc5 {[%clk 0:02:57.9]}
8... dxe5 {[%clk 0:02:43.4]} 9. fxe5 {[%clk 0:02:55.1]} 9... Qa5+ {[%clk
0:02:40.3]} 10. Nc3 {[%clk 0:02:53.7]} 10... Qxc5 {[%clk 0:02:38.6]} 11. Nf3
{[%clk 0:02:52.9]} 11... Nbc6 {[%clk 0:02:38.2]} 12. Ne4 {[%clk 0:02:52.1]}
12... Qb4+ {[%clk 0:02:17.9]} 13. c3 {[%clk 0:02:48.6]} 13... Qxb2 {[%clk
0:02:17.6]} 14. Nd6+ {[%clk 0:02:46]} 14... Kf8 {[%clk 0:02:17.5]} 15. O-O
{[%clk 0:02:46.5]} 15... Qxc3 {[%clk 0:02:02.1]} 16. Ng5 {[%clk 0:02:46.2]}
16... Nf5 {[%clk 0:01:55.4]} 17. Ngxf7 {[%clk 0:02:38.1]} 17... Nxe5 {[%clk
0:01:45.3]} 18. Bxf5 {[%clk 0:02:20.3]} 18... exf5 {[%clk 0:01:40.6]} 19. Nxh8
{[%clk 0:02:18.9]} 19... g6 {[%clk 0:01:25.7]} 20. Rc1 {[%clk 0:02:16.7]} 20...
Qe3+ {[%clk 0:01:20.6]} 21. Kh1 {[%clk 0:02:17.1]} 21... Bd7 {[%clk 0:01:11.3]}
22. Nc4 {[%clk 0:02:13.9]} 22... Nxc4 {[%clk 0:00:50.1]} 23. Qxd7 {[%clk
0:02:13.6]} 23... Ne5 {[%clk 0:00:46.1]} 24. Qd6+ {[%clk 0:02:04.4]} 24... Kg7
{[%clk 0:00:45.1]} 25. Rfe1 {[%clk 0:02:05]} 25... Qg5 {[%clk 0:00:19.6]} 26.
Qxe5+ {[%clk 0:02:04.1]} 26... Kh6 {[%clk 0:00:20.1]} 27. Nf7+ {[%clk
0:02:03.2]} 1-0

[Event "Late-Titled-Tuesday-Blitz-July-09-2024"]
[Site "Chess.com"]
[Date "2024.07.09"]
[Round "1"]
[White "VacheH009"]
[Black "Msb2"]
[Result "0-1"]
[WhiteElo "2513"]
[BlackElo "3085"]
[TimeControl "180+1"]
[EndTime "14:04:54 PDT"]
[Termination "Msb2 won by checkmate"]

1. d4 {[%clk 0:02:52.7]} 1... d5 {[%clk 0:03:00.2]} 2. Nf3 {[%clk 0:02:50.8]}
2... e6 {[%clk 0:03:00.7]} 3. c4 {[%clk 0:02:49.3]} 3... Nf6 {[%clk 0:03:00.7]}
4. Nc3 {[%clk 0:02:46]} 4... Bb4 {[%clk 0:03:00.2]} 5. Bg5 {[%clk 0:02:37.7]}
5... h6 {[%clk 0:03:00.2]} 6. Bxf6 {[%clk 0:02:37.6]} 6... Qxf6 {[%clk
0:03:00.3]} 7. e3 {[%clk 0:02:38.2]} 7... c5 {[%clk 0:03:00.3]} 8. Qb3 {[%clk
0:02:35.4]} 8... O-O {[%clk 0:02:58.8]} 9. dxc5 {[%clk 0:02:31]} 9... Bxc3+
{[%clk 0:02:48.1]} 10. Qxc3 {[%clk 0:02:31.9]} 10... Qxc3+ {[%clk 0:02:47.8]}
11. bxc3 {[%clk 0:02:32.8]} 11... dxc4 {[%clk 0:02:48.7]} 12. Bxc4 {[%clk
0:01:59.4]} 12... Nd7 {[%clk 0:02:48.3]} 13. c6 {[%clk 0:01:58.5]} 13... bxc6
{[%clk 0:02:49.2]} 14. O-O {[%clk 0:01:56.3]} 14... Nb6 {[%clk 0:02:49.6]} 15.
Be2 {[%clk 0:01:55.6]} 15... c5 {[%clk 0:02:50.2]} 16. a4 {[%clk 0:01:43.7]}
16... Nd5 {[%clk 0:02:45]} 17. Rfc1 {[%clk 0:01:39.5]} 17... a5 {[%clk
0:02:44.8]} 18. Ne5 {[%clk 0:01:37.7]} 18... f6 {[%clk 0:02:44.6]} 19. Nc4
{[%clk 0:01:31.5]} 19... Bd7 {[%clk 0:02:44.7]} 20. g3 {[%clk 0:01:24.6]} 20...
Rfb8 {[%clk 0:02:44.6]} 21. Nd6 {[%clk 0:01:09.3]} 21... Rb2 {[%clk 0:02:42.7]}
22. Bb5 {[%clk 0:01:06.8]} 22... Bxb5 {[%clk 0:02:39.6]} 23. axb5 {[%clk
0:01:05.9]} 23... Nb6 {[%clk 0:02:39.9]} 24. Ne4 {[%clk 0:00:57.9]} 24... c4
{[%clk 0:02:37.7]} 25. Nc5 {[%clk 0:00:52.6]} 25... e5 {[%clk 0:02:32.4]} 26.
Na4 {[%clk 0:00:51.8]} 26... Rxb5 {[%clk 0:02:32.6]} 27. Nxb6 {[%clk 0:00:50.5]}
27... Rxb6 {[%clk 0:02:33.5]} 28. Ra4 {[%clk 0:00:50.3]} 28... Rc6 {[%clk
0:02:31.8]} 29. Rb1 {[%clk 0:00:48.3]} 29... Rc5 {[%clk 0:02:30.1]} 30. Rb7
{[%clk 0:00:47.6]} 30... Rd8 {[%clk 0:02:30.2]} 31. Ra7 {[%clk 0:00:45.8]} 31...
Rd3 {[%clk 0:02:30.3]} 32. Ra3 {[%clk 0:00:44.6]} 32... Rb5 {[%clk 0:02:29.3]}
33. Rc7 {[%clk 0:00:36]} 33... Rd2 {[%clk 0:02:26]} 34. Kg2 {[%clk 0:00:21.8]}
34... Rbb2 {[%clk 0:02:26]} 35. Kf3 {[%clk 0:00:21.4]} 35... f5 {[%clk
0:02:25.3]} 36. g4 {[%clk 0:00:16.3]} 36... Rxf2+ {[%clk 0:02:25.5]} 37. Kg3
{[%clk 0:00:17.2]} 37... f4+ {[%clk 0:02:26.3]} 38. exf4 {[%clk 0:00:15.1]}
38... exf4+ {[%clk 0:02:27.2]} 39. Kh4 {[%clk 0:00:14.4]} 39... Rxh2# {[%clk
0:02:28.1]} 0-1

[Event "Late-Titled-Tuesday-Blitz-July-09-2024"]
[Site "Chess.com"]
[Date "2024.07.09"]
[Round "1"]
[White "legendisback1"]
[Black "Cxrjs"]
[Result "1-0"]
[WhiteElo "3029"]
[BlackElo "2508"]
[TimeControl "180+1"]
[EndTime "14:05:07 PDT"]
[Termination "legendisback1 won by resignation"]

1. d4 {[%clk 0:03:00.9]} 1... Nf6 {[%clk 0:02:54]} 2. Nc3 {[%clk 0:03:01.1]}
2... d5 {[%clk 0:02:52.3]} 3. Bf4 {[%clk 0:03:00.1]} 3... a6 {[%clk 0:02:50.6]}
4. e3 {[%clk 0:02:56.1]} 4... h6 {[%clk 0:02:49.9]} 5. Nf3 {[%clk 0:02:54.3]}
5... e6 {[%clk 0:02:48.5]} 6. Ne5 {[%clk 0:02:54]} 6... c5 {[%clk 0:02:47.2]} 7.
Bd3 {[%clk 0:02:53.7]} 7... Nfd7 {[%clk 0:02:36.3]} 8. Ng6 {[%clk 0:02:12.5]}
8... fxg6 {[%clk 0:02:18.5]} 9. Bxg6+ {[%clk 0:02:13.4]} 9... Ke7 {[%clk
0:02:18.9]} 10. dxc5 {[%clk 0:02:12.6]} 10... Nxc5 {[%clk 0:02:08.4]} 11. O-O
{[%clk 0:02:12.6]} 11... Nc6 {[%clk 0:01:58.2]} 12. Qh5 {[%clk 0:02:05.7]} 12...
Nd7 {[%clk 0:01:32.4]} 13. Rad1 {[%clk 0:02:01.7]} 13... Nf6 {[%clk 0:01:32.1]}
14. Qh4 {[%clk 0:02:01]} 14... Qa5 {[%clk 0:01:21.3]} 15. e4 {[%clk 0:01:55.1]}
15... Bd7 {[%clk 0:00:50.2]} 16. exd5 {[%clk 0:01:50.3]} 16... e5 {[%clk
0:00:18.2]} 17. dxc6 {[%clk 0:01:46.1]} 17... exf4 {[%clk 0:00:17.8]} 18. Rxd7+
{[%clk 0:01:31.1]} 18... Ke6 {[%clk 0:00:15.2]} 19. Re1+ {[%clk 0:01:32]} 1-0

[Event "Late-Titled-Tuesday-Blitz-July-09-2024"]
[Site "Chess.com"]
[Date "2024.07.09"]
[Round "1"]
[White "Chempiblinka"]
[Black "secretworker2027"]
[Result "0-1"]
[WhiteElo "2373"]
[BlackElo "2690"]
[TimeControl "180+1"]
[EndTime "14:05:16 PDT"]
[Termination "secretworker2027 won by resignation"]

1. Nf3 {[%clk 0:02:51.6]} 1... d5 {[%clk 0:02:59.8]} 2. g3 {[%clk 0:02:43.3]}
2... Nf6 {[%clk 0:02:59.7]} 3. Bg2 {[%clk 0:02:43.9]} 3... c6 {[%clk 0:02:58.7]}
4. O-O {[%clk 0:02:43.4]} 4... Bf5 {[%clk 0:02:58.9]} 5. c4 {[%clk 0:02:44.3]}
5... e6 {[%clk 0:02:56.8]} 6. cxd5 {[%clk 0:02:44.4]} 6... exd5 {[%clk
0:02:55.8]} 7. d3 {[%clk 0:02:45.2]} 7... Be7 {[%clk 0:02:55.9]} 8. Qb3 {[%clk
0:02:32.2]} 8... Qc8 {[%clk 0:02:44]} 9. Nc3 {[%clk 0:02:30.4]} 9... O-O {[%clk
0:02:43.6]} 10. Nd4 {[%clk 0:02:17.9]} 10... Bd7 {[%clk 0:02:41.4]} 11. e4
{[%clk 0:02:17.9]} 11... dxe4 {[%clk 0:02:40.1]} 12. dxe4 {[%clk 0:02:17.4]}
12... Na6 {[%clk 0:02:39.2]} 13. e5 {[%clk 0:02:16.4]} 13... Ng4 {[%clk
0:02:37.6]} 14. Re1 {[%clk 0:02:03.3]} 14... Bc5 {[%clk 0:02:28.3]} 15. Qc4
{[%clk 0:01:32.6]} 15... Be6 {[%clk 0:02:20.4]} 16. Nxe6 {[%clk 0:01:21.7]}
16... Bxf2+ {[%clk 0:02:18.4]} 17. Kf1 {[%clk 0:01:15.1]} 17... Qxe6 {[%clk
0:02:18.6]} 18. Qe2 {[%clk 0:00:42.1]} 18... Bxe1 {[%clk 0:02:16.5]} 19. Qxe1
{[%clk 0:00:43]} 19... Qxe5 {[%clk 0:02:13.2]} 20. Qxe5 {[%clk 0:00:36.3]} 20...
Nxe5 {[%clk 0:02:12.4]} 21. Bf4 {[%clk 0:00:36.7]} 21... Nd3 {[%clk 0:02:10.6]}
22. Bd6 {[%clk 0:00:29.5]} 22... Rfe8 {[%clk 0:02:07.7]} 23. Ba3 {[%clk
0:00:30]} 23... Rad8 {[%clk 0:02:05.4]} 24. Ne4 {[%clk 0:00:29.1]} 24... Nab4
{[%clk 0:01:55.1]} 25. Rb1 {[%clk 0:00:19.3]} 25... Nc2 {[%clk 0:01:51.5]} 26.
Nd6 {[%clk 0:00:14.7]} 26... Nxa3 {[%clk 0:01:49.7]} 27. Nxe8 {[%clk 0:00:11.8]}
27... Nxb1 {[%clk 0:01:43.1]} 0-1

[Event "Late-Titled-Tuesday-Blitz-July-09-2024"]
[Site "Chess.com"]
[Date "2024.07.09"]
[Round "1"]
[White "AsaHoffmann"]
[Black "AcostaPablo"]
[Result "0-1"]
[WhiteElo "2392"]
[BlackElo "2710"]
[TimeControl "180+1"]
[EndTime "14:05:19 PDT"]
[Termination "AcostaPablo won by resignation"]

1. d4 {[%clk 0:02:54.5]} 1... Nf6 {[%clk 0:02:54]} 2. Bg5 {[%clk 0:02:53.4]}
2... d5 {[%clk 0:02:50]} 3. e3 {[%clk 0:02:52.1]} 3... Nbd7 {[%clk 0:02:49.7]}
4. f4 {[%clk 0:02:51.5]} 4... h6 {[%clk 0:02:47.9]} 5. Bh4 {[%clk 0:02:51.2]}
5... c5 {[%clk 0:02:48.5]} 6. c3 {[%clk 0:02:51.1]} 6... Qb6 {[%clk 0:02:48.1]}
7. b3 {[%clk 0:02:46.9]} 7... Ne4 {[%clk 0:02:45.7]} 8. Bd3 {[%clk 0:02:45.2]}
8... Ndf6 {[%clk 0:02:42.5]} 9. Nf3 {[%clk 0:02:44.4]} 9... Bf5 {[%clk
0:02:41.7]} 10. Ne5 {[%clk 0:02:43.7]} 10... e6 {[%clk 0:02:38.7]} 11. O-O
{[%clk 0:02:39.5]} 11... Be7 {[%clk 0:02:35.7]} 12. Bxe4 {[%clk 0:02:27.8]}
12... Bxe4 {[%clk 0:02:28.7]} 13. Nd2 {[%clk 0:02:27.1]} 13... Bh7 {[%clk
0:02:17.7]} 14. Qf3 {[%clk 0:02:16.5]} 14... Rc8 {[%clk 0:02:16.7]} 15. Rac1
{[%clk 0:02:13.4]} 15... Qa5 {[%clk 0:02:14.9]} 16. dxc5 {[%clk 0:02:05.9]}
16... Qxa2 {[%clk 0:02:02.6]} 17. Rf2 {[%clk 0:02:04.8]} 17... Qa3 {[%clk
0:01:59.2]} 18. Rff1 {[%clk 0:01:47.8]} 18... Qxc5 {[%clk 0:01:53.3]} 19. c4
{[%clk 0:01:44.5]} 19... Qb4 {[%clk 0:01:34.5]} 20. Qe2 {[%clk 0:01:34.2]} 20...
O-O {[%clk 0:01:26.9]} 21. Bxf6 {[%clk 0:01:31.6]} 21... Bxf6 {[%clk 0:01:22]}
22. Nd7 {[%clk 0:01:31]} 22... Rfd8 {[%clk 0:01:22.1]} 23. Nxf6+ {[%clk
0:01:30.3]} 23... gxf6 {[%clk 0:01:23]} 24. cxd5 {[%clk 0:01:20.6]} 24... Rxc1
{[%clk 0:01:22.1]} 25. Rxc1 {[%clk 0:01:19.1]} 25... Rxd5 {[%clk 0:01:21.8]} 26.
Rc8+ {[%clk 0:01:10.7]} 26... Kg7 {[%clk 0:01:21.5]} 27. Qg4+ {[%clk 0:01:05.1]}
27... Bg6 {[%clk 0:01:20.9]} 28. Nf3 {[%clk 0:01:04.7]} 28... Qxb3 {[%clk
0:01:12.1]} 29. e4 {[%clk 0:00:55.4]} 29... Qe3+ {[%clk 0:01:09.9]} 0-1

[Event "Late-Titled-Tuesday-Blitz-July-09-2024"]
[Site "Chess.com"]
[Date "2024.07.09"]
[Round "1"]
[White "Mikayel99"]
[Black "katharinareinecke"]
[Result "0-1"]
[WhiteElo "2538"]
[BlackElo "2098"]
[TimeControl "180+1"]
[EndTime "14:05:25 PDT"]
[Termination "katharinareinecke won by resignation"]

1. e4 {[%clk 0:02:59.4]} 1... c6 {[%clk 0:02:59.6]} 2. d4 {[%clk 0:02:50.6]}
2... d5 {[%clk 0:02:59.7]} 3. exd5 {[%clk 0:02:51.5]} 3... cxd5 {[%clk
0:02:59.8]} 4. Bd3 {[%clk 0:02:50.9]} 4... Nc6 {[%clk 0:02:58.7]} 5. c3 {[%clk
0:02:49.7]} 5... Qc7 {[%clk 0:02:58.2]} 6. h3 {[%clk 0:02:44.7]} 6... Nf6 {[%clk
0:02:54.2]} 7. Nf3 {[%clk 0:02:42.5]} 7... g6 {[%clk 0:02:53.9]} 8. O-O {[%clk
0:02:42.4]} 8... Bf5 {[%clk 0:02:53.1]} 9. Be2 {[%clk 0:02:42.1]} 9... Bg7
{[%clk 0:02:49.4]} 10. Re1 {[%clk 0:02:40.1]} 10... O-O {[%clk 0:02:48.9]} 11.
Nbd2 {[%clk 0:02:40.8]} 11... a6 {[%clk 0:02:44.2]} 12. a4 {[%clk 0:02:34.3]}
12... Ne4 {[%clk 0:02:36.6]} 13. Nxe4 {[%clk 0:02:33.7]} 13... Bxe4 {[%clk
0:02:33.9]} 14. Bg5 {[%clk 0:02:33.6]} 14... Bxf3 {[%clk 0:02:24.6]} 15. Bxf3
{[%clk 0:02:34.5]} 15... e6 {[%clk 0:02:23.6]} 16. Bh4 {[%clk 0:02:32.2]} 16...
Na5 {[%clk 0:02:20.3]} 17. Bg3 {[%clk 0:02:31.7]} 17... Qb6 {[%clk 0:02:18.8]}
18. b4 {[%clk 0:02:24.2]} 18... Nc4 {[%clk 0:02:16.3]} 19. a5 {[%clk 0:02:24.7]}
19... Qc6 {[%clk 0:02:13.9]} 20. Rc1 {[%clk 0:02:23.4]} 20... Rac8 {[%clk
0:02:12.9]} 21. h4 {[%clk 0:02:22.8]} 21... Bh6 {[%clk 0:02:09.4]} 22. Rc2
{[%clk 0:02:09.6]} 22... Na3 {[%clk 0:02:08.6]} 23. Rb2 {[%clk 0:02:09.1]} 23...
Qxc3 {[%clk 0:02:05.8]} 24. Rb3 {[%clk 0:02:09.4]} 24... Qc2 {[%clk 0:01:35.5]}
25. Rxa3 {[%clk 0:02:07.6]} 25... Qxd1 {[%clk 0:01:31.5]} 26. Rxd1 {[%clk
0:02:08.5]} 26... Rc4 {[%clk 0:01:31.4]} 27. Rb3 {[%clk 0:01:54.1]} 27... Rfc8
{[%clk 0:01:27.2]} 28. b5 {[%clk 0:01:53.6]} 28... Ra4 {[%clk 0:01:22.1]} 29.
bxa6 {[%clk 0:01:36.3]} 29... bxa6 {[%clk 0:01:21.5]} 30. Rb6 {[%clk 0:01:27.3]}
30... Rxa5 {[%clk 0:01:20.2]} 31. Be2 {[%clk 0:01:27.4]} 31... Ra8 {[%clk
0:01:08.6]} 32. Rdb1 {[%clk 0:01:27.7]} 32... Ra4 {[%clk 0:01:03.3]} 33. Rb8+
{[%clk 0:01:27.7]} 33... Rxb8 {[%clk 0:00:59.6]} 34. Rxb8+ {[%clk 0:01:28.6]}
34... Kg7 {[%clk 0:00:49.2]} 35. Be5+ {[%clk 0:01:28.6]} 35... f6 {[%clk
0:00:48.9]} 36. Rb7+ {[%clk 0:01:28.5]} 36... Kg8 {[%clk 0:00:45.8]} 37. Bxf6
{[%clk 0:01:28.5]} 37... Bf4 {[%clk 0:00:41.1]} 38. Bg4 {[%clk 0:01:27.5]} 38...
Ra1+ {[%clk 0:00:38]} 0-1

[Event "Late-Titled-Tuesday-Blitz-July-09-2024"]
[Site "Chess.com"]
[Date "2024.07.09"]
[Round "1"]
[White "protectiago"]
[Black "Aryan_Tamadon"]
[Result "0-1"]
[WhiteElo "2175"]
[BlackElo "2576"]
[TimeControl "180+1"]
[EndTime "14:05:31 PDT"]
[Termination "Aryan_Tamadon won by resignation"]

1. d4 {[%clk 0:02:59.1]} 1... Nf6 {[%clk 0:02:57.3]} 2. c4 {[%clk 0:02:59.1]}
2... c5 {[%clk 0:02:55.3]} 3. d5 {[%clk 0:02:58.8]} 3... e6 {[%clk 0:02:55.1]}
4. Nc3 {[%clk 0:02:58.4]} 4... d6 {[%clk 0:02:26]} 5. g3 {[%clk 0:02:52.7]} 5...
exd5 {[%clk 0:02:20.5]} 6. cxd5 {[%clk 0:02:52.3]} 6... Be7 {[%clk 0:02:20.7]}
7. Bg2 {[%clk 0:02:52]} 7... O-O {[%clk 0:02:21.4]} 8. Nf3 {[%clk 0:02:52.2]}
8... Re8 {[%clk 0:02:21.7]} 9. O-O {[%clk 0:02:52.1]} 9... Bf5 {[%clk 0:02:17]}
10. Nd2 {[%clk 0:02:45.5]} 10... Bf8 {[%clk 0:02:14.9]} 11. f3 {[%clk
0:02:32.7]} 11... a6 {[%clk 0:02:10.9]} 12. e4 {[%clk 0:02:31.6]} 12... Bd7
{[%clk 0:02:10.6]} 13. a4 {[%clk 0:02:27.8]} 13... b6 {[%clk 0:02:05.5]} 14. h3
{[%clk 0:02:12.4]} 14... Ra7 {[%clk 0:02:03.1]} 15. f4 {[%clk 0:02:11]} 15...
Rb7 {[%clk 0:01:57.9]} 16. Nc4 {[%clk 0:02:03.3]} 16... b5 {[%clk 0:01:52.9]}
17. axb5 {[%clk 0:02:03.3]} 17... axb5 {[%clk 0:01:53.8]} 18. Na5 {[%clk
0:02:02.9]} 18... Ra7 {[%clk 0:01:54.1]} 19. Nb3 {[%clk 0:01:50.3]} 19... Rxa1
{[%clk 0:01:53.8]} 20. Nxa1 {[%clk 0:01:49.5]} 20... b4 {[%clk 0:01:54.5]} 21.
e5 {[%clk 0:01:39.5]} 21... bxc3 {[%clk 0:01:47.1]} 22. exf6 {[%clk 0:01:37.9]}
22... Qxf6 {[%clk 0:01:45.5]} 23. bxc3 {[%clk 0:01:02.4]} 23... Qxc3 {[%clk
0:01:46.4]} 24. Bd2 {[%clk 0:00:54.5]} 24... Qxg3 {[%clk 0:01:28.4]} 25. Rf3
{[%clk 0:00:53.8]} 25... Qh4 {[%clk 0:01:28]} 26. Bc3 {[%clk 0:00:46.1]} 26...
Bb5 {[%clk 0:01:25]} 27. Nc2 {[%clk 0:00:31.9]} 27... Be2 {[%clk 0:01:24.4]} 0-1